[Event "Titled Tuesday Blitz March 01 Early 2022"]
[White "Makhnev, Denis"]
[Black "Kretov, Evgenij"]
[WhiteFideId "13707647"]
[BlackFideId "4167821"]
[WhiteElo "2491"]
[BlackElo "2303"]
[Result "1-0"]
[Round "07"]
[TimeControl "180+1"]
[Date "2022.03.01"]
[WhiteClock "0:00:10"]
[BlackClock "0:00:20"]

1. d4 {[%clk 0:03:00]}  Nf6 {[%clk 0:02:59]} 2. c4 {[%clk 0:03:01]}  c5 {[%clk 0:02:58]} 3. d5 {[%clk 0:03:01]}  e5 {[%clk 0:02:59]} 4. Nc3 {[%clk 0:03:00]}  d6 {[%clk 0:02:59]} 5. Nf3 {[%clk 0:03:00]}  Be7 {[%clk 0:03:00]} 6. h3 {[%clk 0:03:00]}  O-O {[%clk 0:03:00]} 7. g4 {[%clk 0:03:00]}  Ne8 {[%clk 0:03:00]} 8. Bg2 {[%clk 0:02:54]}  Nd7 {[%clk 0:02:59]} 9. e4 {[%clk 0:02:49]}  g6 {[%clk 0:02:59]} 10. h4 {[%clk 0:02:48]}  Ndf6 {[%clk 0:02:59]} 11. Nh2 {[%clk 0:02:47]}  h5 {[%clk 0:02:56]} 12. g5 {[%clk 0:02:41]}  Nd7 {[%clk 0:02:55]} 13. Nf3 {[%clk 0:02:39]}  a6 {[%clk 0:02:51]} 14. a4 {[%clk 0:02:39]}  Rb8 {[%clk 0:02:50]} 15. Qc2 {[%clk 0:02:35]}  Nc7 {[%clk 0:02:50]} 16. a5 {[%clk 0:02:35]}  b5 {[%clk 0:02:49]} 17. axb6 {[%clk 0:02:35]}  Nxb6 {[%clk 0:02:48]} 18. b3 {[%clk 0:02:36]}  Bg4 {[%clk 0:02:47]} 19. Be3 {[%clk 0:02:35]}  Qc8 {[%clk 0:02:44]} 20. Nd2 {[%clk 0:02:22]}  Ra8 {[%clk 0:02:34]} 21. Ra5 {[%clk 0:02:19]}  Bd8 {[%clk 0:02:31]} 22. f3 {[%clk 0:02:17]}  Bd7 {[%clk 0:02:31]} 23. Ke2 {[%clk 0:02:14]}  Ne8 {[%clk 0:02:27]} 24. Ra3 {[%clk 0:02:13]}  Nc7 {[%clk 0:02:24]} 25. Qd1 {[%clk 0:02:11]}  Be7 {[%clk 0:02:22]} 26. Qf1 {[%clk 0:02:11]}  Qb7 {[%clk 0:02:21]} 27. Bh3 {[%clk 0:02:11]}  Rfb8 {[%clk 0:02:21]} 28. Bxd7 {[%clk 0:02:10]}  Nxd7 {[%clk 0:02:21]} 29. Qc1 {[%clk 0:02:09]}  Bd8 {[%clk 0:02:06]} 30. Qb2 {[%clk 0:02:07]}  a5 {[%clk 0:02:06]} 31. Rha1 {[%clk 0:02:06]}  Na6 {[%clk 0:02:07]} 32. Bf2 {[%clk 0:02:01]}  Nb4 {[%clk 0:02:04]} 33. Nb5 {[%clk 0:02:01]}  Ra6 {[%clk 0:02:03]} 34. Nb1 {[%clk 0:01:55]}  Nf8 {[%clk 0:02:02]} 35. N1c3 {[%clk 0:01:54]}  Qd7 {[%clk 0:02:01]} 36. Rh1 {[%clk 0:01:53]}  Rba8 {[%clk 0:01:56]} 37. Qd2 {[%clk 0:01:52]}  Qc8 {[%clk 0:01:44]} 38. Kf1 {[%clk 0:01:30]}  Qd7 {[%clk 0:01:42]} 39. Kg2 {[%clk 0:01:30]}  Qc8 {[%clk 0:01:42]} 40. Rh3 {[%clk 0:01:30]}  Qd7 {[%clk 0:01:42]} 41. Rg3 {[%clk 0:01:30]}  Be7 {[%clk 0:01:37]} 42. Ra1 {[%clk 0:01:28]}  Re8 {[%clk 0:01:37]} 43. Rf1 {[%clk 0:01:19]}  Bd8 {[%clk 0:01:35]} 44. Be3 {[%clk 0:01:08]}  Rb6 {[%clk 0:01:17]} 45. f4 {[%clk 0:01:05]}  exf4 {[%clk 0:01:17]} 46. Rxf4 {[%clk 0:01:03]}  Nh7 {[%clk 0:01:16]} 47. Rgf3 {[%clk 0:01:01]}  Rf8 {[%clk 0:01:16]} 48. Bf2 {[%clk 0:00:47]}  Rb7 {[%clk 0:01:11]} 49. Bg3 {[%clk 0:00:47]}  Be7 {[%clk 0:01:08]} 50. Rf6 {[%clk 0:00:33]}  Rb6 {[%clk 0:00:54]} 51. e5 {[%clk 0:00:34]}  Bxf6 {[%clk 0:00:40]} 52. gxf6 {[%clk 0:00:32]}  g5 {[%clk 0:00:39]} 53. e6 {[%clk 0:00:20]}  fxe6 {[%clk 0:00:38]} 54. hxg5 {[%clk 0:00:20]}  e5 {[%clk 0:00:35]} 55. Ne4 {[%clk 0:00:19]}  Qg4 {[%clk 0:00:31]} 56. Nbxd6 {[%clk 0:00:16]}  h4 {[%clk 0:00:31]} 57. g6 {[%clk 0:00:12]}  Nxf6 {[%clk 0:00:27]} 58. Rxf6 {[%clk 0:00:10]}  Rxd6 {[%clk 0:00:22]} 59. Rxf8+ {[%clk 0:00:10]}  Kxf8 {[%clk 0:00:22]} 60. Qh6+ {[%clk 0:00:10]}  Ke7 {[%clk 0:00:22]} 61. Qg7+ {[%clk 0:00:09]}  Kd8 {[%clk 0:00:21]} 62. Qf8+ {[%clk 0:00:09]}  Kd7 {[%clk 0:00:19]} 63. Qxd6+ {[%clk 0:00:09]}  Kc8 {[%clk 0:00:20]} 64. Qe6+ {[%clk 0:00:10]} 1-0


[Site "https://www.chess.com"]

[Event "Titled Tuesday Blitz March 01 Early 2022"]
[White "Maltsevskaya, Aleksandra"]
[Black "Kirillov, Dmitry"]
[WhiteFideId "24174041"]
[BlackFideId "34180572"]
[WhiteElo "2283"]
[BlackElo "2076"]
[Result "0-1"]
[Round "07"]
[TimeControl "180+1"]
[Date "2022.03.01"]
[WhiteClock "0:00:01"]
[BlackClock "0:00:21"]

1. Nf3 {[%clk 0:03:00]}  Nf6 {[%clk 0:02:59]} 2. g3 {[%clk 0:03:00]}  d5 {[%clk 0:02:59]} 3. Bg2 {[%clk 0:03:00]}  c5 {[%clk 0:03:00]} 4. O-O {[%clk 0:03:01]}  e6 {[%clk 0:03:00]} 5. d3 {[%clk 0:03:02]}  Nc6 {[%clk 0:02:58]} 6. Nbd2 {[%clk 0:03:03]}  g6 {[%clk 0:02:57]} 7. e4 {[%clk 0:03:01]}  Bg7 {[%clk 0:02:57]} 8. exd5 {[%clk 0:02:51]}  Nxd5 {[%clk 0:02:56]} 9. Nc4 {[%clk 0:02:48]}  O-O {[%clk 0:02:49]} 10. a4 {[%clk 0:02:47]}  b6 {[%clk 0:02:45]} 11. Re1 {[%clk 0:02:38]}  Bb7 {[%clk 0:02:45]} 12. a5 {[%clk 0:02:35]}  Rc8 {[%clk 0:02:38]} 13. axb6 {[%clk 0:02:35]}  axb6 {[%clk 0:02:39]} 14. c3 {[%clk 0:02:35]}  b5 {[%clk 0:02:36]} 15. Nce5 {[%clk 0:02:35]}  Nxe5 {[%clk 0:02:32]} 16. Nxe5 {[%clk 0:02:36]}  Qc7 {[%clk 0:02:28]} 17. Nf3 {[%clk 0:02:16]}  Ra8 {[%clk 0:02:27]} 18. Rxa8 {[%clk 0:02:15]}  Rxa8 {[%clk 0:02:28]} 19. Qb3 {[%clk 0:02:14]}  Bc6 {[%clk 0:02:18]} 20. Ng5 {[%clk 0:02:08]}  Ra1 {[%clk 0:02:01]} 21. h4 {[%clk 0:01:52]}  b4 {[%clk 0:01:51]} 22. Ne4 {[%clk 0:01:28]}  Bb5 {[%clk 0:01:23]} 23. Kh2 {[%clk 0:01:03]}  c4 {[%clk 0:01:05]} 24. dxc4 {[%clk 0:00:55]}  Ba4 {[%clk 0:01:05]} 25. Qxa4 {[%clk 0:00:08]}  Rxa4 {[%clk 0:01:06]} 26. cxd5 {[%clk 0:00:08]}  exd5 {[%clk 0:01:06]} 27. Bf4 {[%clk 0:00:08]}  Qe7 {[%clk 0:00:58]} 28. Bg5 {[%clk 0:00:05]}  Qf8 {[%clk 0:00:30]} 29. Nf6+ {[%clk 0:00:03]}  Bxf6 {[%clk 0:00:30]} 30. Bxf6 {[%clk 0:00:04]}  Ra6 {[%clk 0:00:29]} 31. Bd4 {[%clk 0:00:03]}  Re6 {[%clk 0:00:29]} 32. Ra1 {[%clk 0:00:02]}  Qd8 {[%clk 0:00:24]} 33. Ra5 {[%clk 0:00:01]}  Qxa5 {[%clk 0:00:21]} 0-1


[Site "https://www.chess.com"]

[Event "Titled Tuesday Blitz March 01 Early 2022"]
[White "Martic, Ivan"]
[Black "Muradov, Soltan"]
[WhiteFideId "929301"]
[BlackFideId "14002108"]
[WhiteElo "2290"]
[BlackElo "1854"]
[Result "0-1"]
[Round "07"]
[TimeControl "180+1"]
[Date "2022.03.01"]
[WhiteClock "0:00:45"]
[BlackClock "0:00:04"]

1. d4 {[%clk 0:03:00]}  Nf6 {[%clk 0:02:59]} 2. Nf3 {[%clk 0:02:59]}  e6 {[%clk 0:02:58]} 3. Bf4 {[%clk 0:02:56]}  Bd6 {[%clk 0:02:55]} 4. e3 {[%clk 0:02:57]}  Bxf4 {[%clk 0:02:51]} 5. exf4 {[%clk 0:02:58]}  b6 {[%clk 0:02:52]} 6. Bd3 {[%clk 0:02:56]}  Bb7 {[%clk 0:02:52]} 7. O-O {[%clk 0:02:56]}  g6 {[%clk 0:02:40]} 8. Re1 {[%clk 0:02:55]}  d6 {[%clk 0:02:37]} 9. a4 {[%clk 0:02:52]}  O-O {[%clk 0:02:36]} 10. a5 {[%clk 0:02:49]}  bxa5 {[%clk 0:02:33]} 11. Nbd2 {[%clk 0:02:49]}  Nc6 {[%clk 0:02:04]} 12. c3 {[%clk 0:02:48]}  Rb8 {[%clk 0:02:03]} 13. Nc4 {[%clk 0:02:45]}  Nd5 {[%clk 0:01:59]} 14. g3 {[%clk 0:02:43]}  Nb6 {[%clk 0:01:33]} 15. Nxa5 {[%clk 0:02:41]}  Nxa5 {[%clk 0:01:34]} 16. Rxa5 {[%clk 0:02:41]}  a6 {[%clk 0:01:31]} 17. Qe2 {[%clk 0:02:32]}  Qd7 {[%clk 0:01:22]} 18. Bxa6 {[%clk 0:02:28]}  Ra8 {[%clk 0:01:00]} 19. Rea1 {[%clk 0:02:24]}  Bxa6 {[%clk 0:00:59]} 20. Rxa6 {[%clk 0:02:25]}  Rxa6 {[%clk 0:00:56]} 21. Rxa6 {[%clk 0:02:26]}  Qc6 {[%clk 0:00:56]} 22. h4 {[%clk 0:02:20]}  Ra8 {[%clk 0:00:50]} 23. Rxa8+ {[%clk 0:02:15]}  Qxa8 {[%clk 0:00:50]} 24. h5 {[%clk 0:02:14]}  gxh5 {[%clk 0:00:43]} 25. Ng5 {[%clk 0:02:13]}  h6 {[%clk 0:00:40]} 26. Ne4 {[%clk 0:02:10]}  Kg7 {[%clk 0:00:40]} 27. Nd2 {[%clk 0:02:03]}  Qa1+ {[%clk 0:00:37]} 28. Nf1 {[%clk 0:01:58]}  Nd5 {[%clk 0:00:29]} 29. Kg2 {[%clk 0:01:55]}  Nf6 {[%clk 0:00:29]} 30. Ne3 {[%clk 0:01:50]}  Qc1 {[%clk 0:00:21]} 31. f5 {[%clk 0:01:47]}  e5 {[%clk 0:00:19]} 32. dxe5 {[%clk 0:01:47]}  dxe5 {[%clk 0:00:19]} 33. Nc4 {[%clk 0:01:45]}  e4 {[%clk 0:00:19]} 34. Qd2 {[%clk 0:01:24]}  Qa1 {[%clk 0:00:16]} 35. Ne3 {[%clk 0:01:18]}  Qb1 {[%clk 0:00:11]} 36. Qd4 {[%clk 0:01:17]}  Qa1 {[%clk 0:00:03]} 37. Nd5 {[%clk 0:01:15]}  Qa6 {[%clk 0:00:03]} 38. b4 {[%clk 0:01:10]}  Qd6 {[%clk 0:00:04]} 39. Nxf6 {[%clk 0:01:05]}  Qxf6 {[%clk 0:00:04]} 40. Qxf6+ {[%clk 0:00:52]}  Kxf6 {[%clk 0:00:04]} 41. Kf1 {[%clk 0:00:52]}  Kxf5 {[%clk 0:00:04]} 42. Ke2 {[%clk 0:00:52]}  Ke5 {[%clk 0:00:03]} 43. Ke3 {[%clk 0:00:52]}  f5 {[%clk 0:00:03]} 44. c4 {[%clk 0:00:50]}  h4 {[%clk 0:00:01]} 45. gxh4 {[%clk 0:00:47]}  f4+ {[%clk 0:00:02]} 46. Ke2 {[%clk 0:00:47]}  Kd4 {[%clk 0:00:02]} 47. c5 {[%clk 0:00:44]}  Kc4 {[%clk 0:00:03]} 48. f3 {[%clk 0:00:44]}  e3 {[%clk 0:00:03]} 49. c6 {[%clk 0:00:44]}  Kxb4 {[%clk 0:00:03]} 50. Kd3 {[%clk 0:00:45]}  Kc5 {[%clk 0:00:03]} 51. Ke4 {[%clk 0:00:45]}  e2 {[%clk 0:00:04]} 0-1


[Site "https://www.chess.com"]

[Event "Titled Tuesday Blitz March 01 Early 2022"]
[White "Matveeva, Olga"]
[Black "Ooi, Zhi Yang"]
[WhiteFideId "24107018"]
[BlackFideId "5709270"]
[WhiteElo "2083"]
[BlackElo "1802"]
[Result "0-1"]
[Round "07"]
[TimeControl "180+1"]
[Date "2022.03.01"]
[WhiteClock "0:00:03"]
[BlackClock "0:00:06"]

1. d4 {[%clk 0:02:48]}  d5 {[%clk 0:02:59]} 2. c4 {[%clk 0:02:47]}  e6 {[%clk 0:02:59]} 3. Nf3 {[%clk 0:02:47]}  c5 {[%clk 0:02:59]} 4. cxd5 {[%clk 0:02:46]}  exd5 {[%clk 0:03:00]} 5. g3 {[%clk 0:02:45]}  Nc6 {[%clk 0:03:00]} 6. Bg2 {[%clk 0:02:45]}  Nf6 {[%clk 0:03:01]} 7. O-O {[%clk 0:02:45]}  Be7 {[%clk 0:03:01]} 8. Nc3 {[%clk 0:02:45]}  O-O {[%clk 0:03:02]} 9. Bg5 {[%clk 0:02:43]}  c4 {[%clk 0:03:02]} 10. Ne5 {[%clk 0:02:42]}  Be6 {[%clk 0:03:01]} 11. f4 {[%clk 0:02:39]}  Nd7 {[%clk 0:02:27]} 12. Bxe7 {[%clk 0:02:37]}  Nxe7 {[%clk 0:02:26]} 13. e3 {[%clk 0:02:33]}  Nxe5 {[%clk 0:02:23]} 14. fxe5 {[%clk 0:02:28]}  Rb8 {[%clk 0:02:21]} 15. a4 {[%clk 0:02:24]}  a6 {[%clk 0:02:18]} 16. Qh5 {[%clk 0:02:21]}  b5 {[%clk 0:02:11]} 17. axb5 {[%clk 0:02:20]}  axb5 {[%clk 0:02:10]} 18. Rf4 {[%clk 0:01:43]}  g6 {[%clk 0:02:08]} 19. Qh4 {[%clk 0:01:34]}  b4 {[%clk 0:02:06]} 20. Na4 {[%clk 0:01:21]}  Ra8 {[%clk 0:02:06]} 21. Rff1 {[%clk 0:01:11]}  Nf5 {[%clk 0:02:03]} 22. Qf4 {[%clk 0:01:10]}  Qa5 {[%clk 0:01:47]} 23. h4 {[%clk 0:00:59]}  c3 {[%clk 0:01:36]} 24. bxc3 {[%clk 0:00:58]}  bxc3 {[%clk 0:01:37]} 25. h5 {[%clk 0:00:58]}  Rfc8 {[%clk 0:01:26]} 26. g4 {[%clk 0:00:53]}  Nh4 {[%clk 0:01:25]} 27. h6 {[%clk 0:00:51]}  Qd8 {[%clk 0:01:19]} 28. Nc5 {[%clk 0:00:43]}  Rxa1 {[%clk 0:00:58]} 29. Rxa1 {[%clk 0:00:44]}  Nxg2 {[%clk 0:00:53]} 30. Kxg2 {[%clk 0:00:44]}  c2 {[%clk 0:00:47]} 31. Rf1 {[%clk 0:00:34]}  Qe7 {[%clk 0:00:33]} 32. Rc1 {[%clk 0:00:29]}  Qh4 {[%clk 0:00:30]} 33. Rxc2 {[%clk 0:00:24]}  Bxg4 {[%clk 0:00:21]} 34. Rf2 {[%clk 0:00:19]}  Qh3+ {[%clk 0:00:17]} 35. Kg1 {[%clk 0:00:19]}  Bf5 {[%clk 0:00:17]} 36. Qf3 {[%clk 0:00:17]}  Qxh6 {[%clk 0:00:16]} 37. Qxd5 {[%clk 0:00:17]}  Rb8 {[%clk 0:00:11]} 38. Qf3 {[%clk 0:00:11]}  Qg5+ {[%clk 0:00:11]} 39. Kh2 {[%clk 0:00:09]}  Rb1 {[%clk 0:00:09]} 40. Rf1 {[%clk 0:00:08]}  Qh4+ {[%clk 0:00:08]} 41. Kg2 {[%clk 0:00:07]}  Bh3+ {[%clk 0:00:06]} 42. Qxh3 {[%clk 0:00:03]}  Rb2+ {[%clk 0:00:06]} 0-1


[Site "https://www.chess.com"]

[Event "Titled Tuesday Blitz March 01 Early 2022"]
[White "Mirzoev, Azer"]
[Black "Piesik, Piotr"]
[WhiteFideId "13400304"]
[BlackFideId "1136194"]
[WhiteElo "2525"]
[BlackElo "2232"]
[Result "0-1"]
[Round "07"]
[TimeControl "180+1"]
[Date "2022.03.01"]
[WhiteClock "0:00:03"]
[BlackClock "0:00:09"]

1. d4 {[%clk 0:03:00]}  c5 {[%clk 0:02:56]} 2. d5 {[%clk 0:03:00]}  e5 {[%clk 0:02:56]} 3. e4 {[%clk 0:03:00]}  d6 {[%clk 0:02:56]} 4. a4 {[%clk 0:02:59]}  Be7 {[%clk 0:02:56]} 5. Nf3 {[%clk 0:02:54]}  Bg4 {[%clk 0:02:56]} 6. a5 {[%clk 0:02:54]}  a6 {[%clk 0:02:52]} 7. Nbd2 {[%clk 0:02:50]}  Bg5 {[%clk 0:02:52]} 8. Be2 {[%clk 0:02:46]}  Bxf3 {[%clk 0:02:46]} 9. Bxf3 {[%clk 0:02:46]}  Bxd2+ {[%clk 0:02:45]} 10. Bxd2 {[%clk 0:02:45]}  Ne7 {[%clk 0:02:45]} 11. O-O {[%clk 0:02:42]}  O-O {[%clk 0:02:45]} 12. c3 {[%clk 0:02:42]}  Nd7 {[%clk 0:02:44]} 13. b4 {[%clk 0:02:42]}  f5 {[%clk 0:02:44]} 14. exf5 {[%clk 0:02:40]}  Nxf5 {[%clk 0:02:45]} 15. Be4 {[%clk 0:02:40]}  Rc8 {[%clk 0:02:40]} 16. Re1 {[%clk 0:02:30]}  cxb4 {[%clk 0:02:40]} 17. cxb4 {[%clk 0:02:30]}  g6 {[%clk 0:02:39]} 18. Ra3 {[%clk 0:02:17]}  Nf6 {[%clk 0:02:31]} 19. Bb1 {[%clk 0:02:01]}  Qd7 {[%clk 0:02:24]} 20. Bg5 {[%clk 0:01:53]}  Rc4 {[%clk 0:02:17]} 21. Bd2 {[%clk 0:01:11]}  Rd4 {[%clk 0:02:08]} 22. Qc1 {[%clk 0:01:05]}  Rc8 {[%clk 0:01:58]} 23. Qb2 {[%clk 0:01:02]}  Nxd5 {[%clk 0:01:48]} 24. Ba2 {[%clk 0:01:00]}  Kg7 {[%clk 0:01:48]} 25. Rf3 {[%clk 0:00:57]}  Nf6 {[%clk 0:01:38]} 26. h3 {[%clk 0:00:53]}  Re4 {[%clk 0:01:18]} 27. Rd1 {[%clk 0:00:45]}  Nd4 {[%clk 0:01:16]} 28. Re3 {[%clk 0:00:38]}  Rc2 {[%clk 0:01:09]} 29. Qb1 {[%clk 0:00:37]}  Qc6 {[%clk 0:01:03]} 30. Bb3 {[%clk 0:00:23]}  Nxb3 {[%clk 0:00:51]} 31. Qxb3 {[%clk 0:00:23]}  Rd4 {[%clk 0:00:44]} 32. Rd3 {[%clk 0:00:16]}  Qc4 {[%clk 0:00:32]} 33. Qxc4 {[%clk 0:00:14]}  Rcxc4 {[%clk 0:00:33]} 34. Be3 {[%clk 0:00:12]}  Rxd3 {[%clk 0:00:33]} 35. Rxd3 {[%clk 0:00:12]}  d5 {[%clk 0:00:33]} 36. Bc5 {[%clk 0:00:11]}  Kf7 {[%clk 0:00:30]} 37. Rf3 {[%clk 0:00:10]}  Ke6 {[%clk 0:00:30]} 38. g4 {[%clk 0:00:10]}  Ne4 {[%clk 0:00:28]} 39. Bf8 {[%clk 0:00:10]}  d4 {[%clk 0:00:26]} 40. Kg2 {[%clk 0:00:09]}  Rc3 {[%clk 0:00:25]} 41. h4 {[%clk 0:00:08]}  Rxf3 {[%clk 0:00:24]} 42. Kxf3 {[%clk 0:00:08]}  Nd2+ {[%clk 0:00:23]} 43. Ke2 {[%clk 0:00:08]}  Nc4 {[%clk 0:00:24]} 44. Kd3 {[%clk 0:00:07]}  Kd5 {[%clk 0:00:24]} 45. f3 {[%clk 0:00:08]}  Ne3 {[%clk 0:00:22]} 46. Be7 {[%clk 0:00:07]}  Ng2 {[%clk 0:00:22]} 47. Bg5 {[%clk 0:00:06]}  Nf4+ {[%clk 0:00:19]} 48. Kd2 {[%clk 0:00:06]}  Kc4 {[%clk 0:00:18]} 49. Bf6 {[%clk 0:00:06]}  Kd5 {[%clk 0:00:18]} 50. Be7 {[%clk 0:00:06]}  Ne6 {[%clk 0:00:18]} 51. Bf6 {[%clk 0:00:05]}  h5 {[%clk 0:00:18]} 52. gxh5 {[%clk 0:00:05]}  gxh5 {[%clk 0:00:19]} 53. Be7 {[%clk 0:00:05]}  Ng7 {[%clk 0:00:18]} 54. Bf6 {[%clk 0:00:05]}  Nf5 {[%clk 0:00:18]} 55. Kd3 {[%clk 0:00:05]}  Nd6 {[%clk 0:00:16]} 56. Bg5 {[%clk 0:00:05]}  Nf7 {[%clk 0:00:09]} 57. Bf6 {[%clk 0:00:05]}  Nd6 {[%clk 0:00:09]} 58. Bg5 {[%clk 0:00:05]}  e4+ {[%clk 0:00:09]} 59. fxe4+ {[%clk 0:00:05]}  Nxe4 {[%clk 0:00:10]} 60. Be7 {[%clk 0:00:05]}  Nf2+ {[%clk 0:00:09]} 61. Kd2 {[%clk 0:00:05]}  Ng4 {[%clk 0:00:09]} 62. Bg5 {[%clk 0:00:04]}  Ke4 {[%clk 0:00:09]} 63. Be7 {[%clk 0:00:04]}  Ne5 {[%clk 0:00:09]} 64. Bd8 {[%clk 0:00:03]}  Nc6 {[%clk 0:00:09]} 0-1


[Site "https://www.chess.com"]

[Event "Titled Tuesday Blitz March 01 Early 2022"]
[White "Miszler, Levente"]
[Black "Stepanencu, Nicodim-Cosmin"]
[WhiteFideId "763276"]
[BlackFideId "1256220"]
[WhiteElo "1966"]
[BlackElo "1809"]
[Result "1-0"]
[Round "07"]
[TimeControl "180+1"]
[Date "2022.03.01"]
[WhiteClock "0:00:06"]
[BlackClock "0:00:01"]

1. Nf3 {[%clk 0:03:00]}  d5 {[%clk 0:02:58]} 2. e3 {[%clk 0:02:57]}  Bf5 {[%clk 0:02:55]} 3. b3 {[%clk 0:02:48]}  f6 {[%clk 0:02:47]} 4. d4 {[%clk 0:02:34]}  Nd7 {[%clk 0:02:46]} 5. Bb2 {[%clk 0:02:33]}  e6 {[%clk 0:02:45]} 6. Nbd2 {[%clk 0:02:32]}  c6 {[%clk 0:02:43]} 7. Bd3 {[%clk 0:02:32]}  Bg6 {[%clk 0:02:39]} 8. e4 {[%clk 0:02:26]}  Bd6 {[%clk 0:02:36]} 9. O-O {[%clk 0:02:23]}  Ne7 {[%clk 0:02:33]} 10. Re1 {[%clk 0:02:18]}  O-O {[%clk 0:02:28]} 11. c4 {[%clk 0:02:09]}  b6 {[%clk 0:02:18]} 12. Qe2 {[%clk 0:02:04]}  Kh8 {[%clk 0:02:16]} 13. exd5 {[%clk 0:01:59]}  exd5 {[%clk 0:02:15]} 14. Bxg6 {[%clk 0:01:41]}  Nxg6 {[%clk 0:02:16]} 15. cxd5 {[%clk 0:01:41]}  cxd5 {[%clk 0:02:13]} 16. Qe6 {[%clk 0:01:41]}  Nb8 {[%clk 0:02:09]} 17. g3 {[%clk 0:01:31]}  Ne7 {[%clk 0:01:52]} 18. Nh4 {[%clk 0:01:16]}  Nbc6 {[%clk 0:01:45]} 19. Rac1 {[%clk 0:01:12]}  Rc8 {[%clk 0:01:34]} 20. Ndf3 {[%clk 0:01:08]}  g6 {[%clk 0:01:22]} 21. Ng2 {[%clk 0:00:46]}  Rc7 {[%clk 0:01:11]} 22. Ne3 {[%clk 0:00:44]}  Rd7 {[%clk 0:01:05]} 23. Nxd5 {[%clk 0:00:37]}  Nxd5 {[%clk 0:01:05]} 24. Qxd5 {[%clk 0:00:38]}  Nb4 {[%clk 0:01:02]} 25. Qc4 {[%clk 0:00:27]}  Nxa2 {[%clk 0:00:52]} 26. Ra1 {[%clk 0:00:17]}  Nb4 {[%clk 0:00:50]} 27. d5 {[%clk 0:00:17]}  Rc7 {[%clk 0:00:46]} 28. Qh4 {[%clk 0:00:10]}  Nd3 {[%clk 0:00:24]} 29. Bd4 {[%clk 0:00:10]}  Nxe1 {[%clk 0:00:22]} 30. Rxe1 {[%clk 0:00:11]}  Bc5 {[%clk 0:00:13]} 31. Bb2 {[%clk 0:00:09]}  Rcf7 {[%clk 0:00:11]} 32. Ng5 {[%clk 0:00:08]}  Re7 {[%clk 0:00:09]} 33. Ne6 {[%clk 0:00:07]}  Rxe6 {[%clk 0:00:04]} 34. Rxe6 {[%clk 0:00:07]}  Be7 {[%clk 0:00:04]} 35. d6 {[%clk 0:00:06]}  Bxd6 {[%clk 0:00:04]} 36. Rxf6 {[%clk 0:00:06]}  Kg8 {[%clk 0:00:01]} 37. Qc4+ {[%clk 0:00:06]}  Kg7 {[%clk 0:00:01]} 38. Rxd6+ {[%clk 0:00:06]} 1-0


[Site "https://www.chess.com"]

[Event "Titled Tuesday Blitz March 01 Early 2022"]
[White "Mitusov, Semen"]
[Black "Krylov, Ivan"]
[WhiteFideId "14151049"]
[BlackFideId "24128066"]
[WhiteElo "2246"]
[BlackElo "2258"]
[Result "1-0"]
[Round "07"]
[TimeControl "180+1"]
[Date "2022.03.01"]
[WhiteClock "0:00:34"]
[BlackClock "0:00:06"]

1. e4 {[%clk 0:03:00]}  c6 {[%clk 0:02:49]} 2. d4 {[%clk 0:02:59]}  d5 {[%clk 0:02:48]} 3. e5 {[%clk 0:02:59]}  c5 {[%clk 0:02:48]} 4. dxc5 {[%clk 0:02:59]}  Nc6 {[%clk 0:02:36]} 5. Bb5 {[%clk 0:02:57]}  e6 {[%clk 0:02:27]} 6. Be3 {[%clk 0:02:55]}  Ne7 {[%clk 0:02:22]} 7. c3 {[%clk 0:02:54]}  Nf5 {[%clk 0:02:21]} 8. Bd4 {[%clk 0:02:55]}  Qa5 {[%clk 0:02:15]} 9. Bxc6+ {[%clk 0:02:52]}  bxc6 {[%clk 0:02:16]} 10. b4 {[%clk 0:02:48]}  Qc7 {[%clk 0:02:11]} 11. Ne2 {[%clk 0:02:43]}  Be7 {[%clk 0:02:06]} 12. O-O {[%clk 0:02:41]}  a5 {[%clk 0:01:59]} 13. Ng3 {[%clk 0:02:38]}  Nh6 {[%clk 0:01:49]} 14. a3 {[%clk 0:02:34]}  O-O {[%clk 0:01:47]} 15. Nd2 {[%clk 0:02:31]}  f6 {[%clk 0:01:28]} 16. Nf3 {[%clk 0:02:28]}  f5 {[%clk 0:01:23]} 17. Re1 {[%clk 0:02:24]}  Kh8 {[%clk 0:01:21]} 18. Qc2 {[%clk 0:02:20]}  Bd7 {[%clk 0:01:16]} 19. c4 {[%clk 0:02:19]}  Be8 {[%clk 0:01:14]} 20. cxd5 {[%clk 0:02:19]}  cxd5 {[%clk 0:01:15]} 21. Ne2 {[%clk 0:02:11]}  Nf7 {[%clk 0:01:06]} 22. Nf4 {[%clk 0:02:08]}  Nd8 {[%clk 0:01:06]} 23. h4 {[%clk 0:02:06]}  a4 {[%clk 0:01:01]} 24. Rab1 {[%clk 0:02:01]}  Bb5 {[%clk 0:01:00]} 25. Qc3 {[%clk 0:01:57]}  Qd7 {[%clk 0:00:55]} 26. Ng5 {[%clk 0:01:56]}  h6 {[%clk 0:00:52]} 27. Qh3 {[%clk 0:01:54]}  Kg8 {[%clk 0:00:48]} 28. Nf3 {[%clk 0:01:46]}  Nc6 {[%clk 0:00:46]} 29. Re3 {[%clk 0:01:33]}  Rf7 {[%clk 0:00:46]} 30. h5 {[%clk 0:01:30]}  Rb8 {[%clk 0:00:35]} 31. Bb2 {[%clk 0:01:27]}  Bc4 {[%clk 0:00:33]} 32. Nd4 {[%clk 0:01:19]}  Bg5 {[%clk 0:00:31]} 33. Ndxe6 {[%clk 0:01:05]}  Re8 {[%clk 0:00:27]} 34. Nxg5 {[%clk 0:01:04]}  hxg5 {[%clk 0:00:26]} 35. e6 {[%clk 0:01:05]}  Qe7 {[%clk 0:00:11]} 36. exf7+ {[%clk 0:01:02]}  Qxf7 {[%clk 0:00:12]} 37. Rxe8+ {[%clk 0:00:42]}  Qxe8 {[%clk 0:00:13]} 38. Ng6 {[%clk 0:00:38]}  Qe4 {[%clk 0:00:09]} 39. h6 {[%clk 0:00:36]}  Qxb1+ {[%clk 0:00:09]} 40. Kh2 {[%clk 0:00:35]}  Kh7 {[%clk 0:00:07]} 41. hxg7+ {[%clk 0:00:34]}  Kxg6 {[%clk 0:00:06]} 42. g8=Q# {[%clk 0:00:34]} 1-0


[Site "https://www.chess.com"]